{"text_format":"1","workbook":"xlsx","n_sheets":14,"sheets":["Read-me-first","Registration Details","Faculty Summary","Faculty_Details","IPR","Sponsored Research","Consultancy","Education Program","Students","Public Exam","Student Event","Facilities","PH_Facilities","Sheet1"],"not_rendered":{"charts":0,"images":3,"macros":1,"external_links":0,"defined_names":4,"comments":11,"pivot_tables":0},"unopened":[],"bounds":{"document_bytes":16777216,"sheet_cells":100000,"rows_first":2000,"rows_last":500,"rows_between":2000,"halvings":0,"cell_chars":16384,"cell_head_chars":4096},"cells_cut":0,"cells_raw":0,"read":"whole","date_system":"1900"}

{"sheet":"Read-me-first","index":0,"n_rows":28,"n_cols":2,"rows_kept":28,"cut":false,"hidden":false,"merged":[]}
["<?xml version=\"1.0\" encoding=\"UTF-8\"?>"]
[]
[]
[]
[]
[null,"National Institutional Ranking Framework"]
[null,"Data Submission Utility (For Engineering)"]
[null,"Instructions "]
[null,"Read the instructions given below carefully before collection of the data"]
[1," This Data Submission Utility is provided to facilitate collection and submission of data required for ranking of institutions according to ranking formula developed by NIRF. "]
[2,"Institutions can use either of the following two methods to provide requisite data for ranking:"]
[null,"(i)  Collect the data using Data Submission Utility and generate an XML file using it that can be uploaded onto the Web-based Data Capturing Platform. See \"How to generate and upload XML file through Data Submission Utility\"; or"]
[null,"(ii) Enter the data online directly into Data Capturing Platform that would be available by Dec., 2015 on NIRF portal. "]
[3,"Click at \"Enable Macros\" when you open the Data Submission Utility. In case you have opted for \"Disabled Macros\", close the file without saving it and opt for \"Enable Macros\" on reopening the file (*.xlsm file)."]
[4,"There are twelve worksheets in the Data Submission Utility, i.e. Registration Details, Faculty Summary, Faculty Details, IPR, Sponsored Research, Consultancy, Education Program, Students, Public Exam., Student Events, Facilities and PH Facilities. You are required to collect data on each of these parameters / sub-parameters. The data input type, i.e. numeric, text, date format, etc., is in-built into field. Please do not try to input any other type of values other than specified for a given field."]
[5," You can fill-in any of the 12 worksheets in any order depending on availability of data. However, once a datasheet is complete in all respect, click at \"Validate\" button to validate data values in each field. Once you click at \"Validate\", the utility will verify the data and prompt either of the two messages: i) \"Sheet is Valid\"; or ii). \"Data is not proper\" along with the respective fields where corrections are required. Correct the data for respective fields and validate again till you get the prompt \"Sheet is Valid\"."]
[6,"Instructions / comments to submit data for each field is given either in respective field (on mouse hover) OR worksheet. Please read these instructions carefully."]
[7,"Only data that can be verified through official records should be provided. All the data finally up-loaded into the Data Capturing System of NIRF should also be made publicly visible on the institute / college website, and should be archived for at least three years. A copy of the same will be made available for the public through the NIRF portal."]
[8,"All statements of expenditure on different heads should be verifiable from annual accounts for the appropriate financial year."]
[9,"All financial data should pertain to the appropriate financial year (i.e. April to March), student and faculty data for the academic year (i.e. July to June) and publications and other information for the calendar year (i.e. January to December) under reference. The appropriate year description is also made explicit in the worksheet."]
[10,"While submitting and up-loading the data, the institute should agree to these and other terms and conditions that may be decided by the Ranking Authority from time to time."]
[11," You can either use Data Submission Utility OR online data capturing platform for submission of data. You can use only one of the alternatives and not a mixture of the two."]
[12,"There are two attachments that are to be uploaded on to the \"Data Capturing Platform\" i.e. List of Research Publications (as per instructions given in IPR worksheet) and Zero-deficiency Report from AICTE, if applicable."]
[13," Difficulties, comments and suggestions regarding Data Submission Utility may please be communicated to \"helpdesk@nirfindia.org\""]
[]
[null,"How to generate and upload XML file through Data Submission Utility"]
[1,"The button for generating XML for all the twelve worksheets is available on the twelfth worksheet entitled \"PH_Facilities\". Generate XML only when you have validated all worksheets. Click on the 'Generate XML' button. This will revalidate all the sheets, and direct you to the confirmation page which shows XML for various worksheets and the number of rows generated for every worksheet."]
[2,"The XML file will be generated with Institute ID (e.g., NIRF-ENGG-1-0123456789.XML) in the same folder location where Data Submission Utility is available. This XML can then be uploaded onto the NIRF website."]

{"sheet":"Registration Details","index":1,"n_rows":17,"n_cols":3,"rows_kept":17,"cut":false,"hidden":false,"merged":[[5,0,5,3],[7,0,7,3]]}
[]
[]
[]
[]
[]
[]
[]
["Registration Details"]
[]
[null,"Institute ID (NIRF ID)","NIRF-ENGG-1-2453623896 "]
[null,"Ranking Year",2015]
[null,"Name of Nodal Officer ","Dr.P.S.Adwani"]
[null,"Nodal Officer's  Email","principalgeca@yahoo.com"]
[null,"Mobile No. of Nodal Officer",9823160390]
[null,"Place","Aurangabad"]
[null,"Creation Date",{"$f":"TODAY()","v":"2016-10-04"}]
[null,"Is Revised","N"]

{"sheet":"Faculty Summary","index":2,"n_rows":22,"n_cols":11,"rows_kept":22,"cut":false,"hidden":false,"merged":[[1,2,1,10],[4,0,5,10],[7,7,7,8],[7,9,7,10],[6,7,6,10],[6,2,6,5],[7,2,7,3],[7,4,7,5],[6,0,8,0],[6,1,8,1],[6,6,8,6],[11,6,13,6],[19,2,19,8],[20,2,20,8],[21,2,21,8],[2,2,2,10]]}
[]
[]
[]
[]
["Details of Faculty for all Programs Year-wise (Academic Years) for three Years (1.a and 1.b)"]
[]
["Sl. No.","Academic Year","Number of faculty\n(Include regular faculty only)",null,null,null,"Average Faculty Experience\n","Number of Visiting Faculty with PhD only, for at least one semester on full-time basis\n"]
[null,null,"Male",null,"Female",null,null,"Male",null,"Female"]
[null,null,"With PhD as highest degree","With M.Tech as highest degree","With PhD as highest degree","With M.Tech as highest degree",null,"Visiting Faculty for One semester only","Visiting Faculty for both semesters","Visiting Faculty for One semester only","Visiting Faculty for both semester"]
["[1]","[2]","[3]","[4]","[5]","[6]","[7]","[8]","[9]","[10]","[11]"]
["Input type =>",null,"numeric only","numeric only","numeric only","numeric only","number only","numeric only","numeric only","numeric only","numeric only"]
[1,"2014-15",19,19,6,25,"(to be computed by the system)",2,0,0,0]
[2,"2013-14",19,18,6,22,null,1,0,0,0]
[3,"2012-13",15,20,6,21,null,2,0,0,0]
[]
[null,null,null,null,null," "]
[]
[]
[null,"Notes on \"Faculty Summary\""]
[null,"Col: 3-6","i) Fill in the numbers of faculty (Male/Female) with Ph.D. / M.Tech as highest degree in respective columns. \nii) Number of Faculty members having both M.Tech & Ph.D. should be included under column 3/5 only for male / female faculty.\niii) Regular appointment means faculty on full-time basis with no time limit on their employment. However, faculty on contract basis for a period of not less than 3 years, on gross salary similar to those who are permanent can also be included.\niv) Faculty members with a  B.Tech (or equivalent  qualification) should not be counted."]
[null,"Col: 7","The Average faculty experience will be computed based on the age of the faculty members in the faculty details. Fill in the date of birth and other details in the \"Faculty Details\" sheet carefully. "]
[null,"Col:8-11","Fill-in the number of visiting faculty (Male/Female) with Ph.D. only who have taught at least one semester in Column 8 and 10 respectively. The number of visiting faculty who have taught two semesters in an academic year should be given in column 9 & 11 respectively. Do not count these faculty members while filling-in the details for column 8 & 10."]

{"sheet":"Faculty_Details","index":3,"n_rows":83,"n_cols":26,"rows_kept":83,"cut":false,"hidden":false,"merged":[[6,18,8,18],[6,17,8,17],[7,8,7,9],[7,10,7,11],[7,14,8,14],[7,15,8,15],[6,16,8,16],[6,20,8,20],[1,2,1,17],[5,0,5,17],[2,2,2,17],[6,0,8,0],[6,1,8,1],[6,2,8,2],[6,3,8,3],[6,4,8,4],[6,5,8,5],[6,6,8,6],[6,7,8,7],[6,8,6,11],[6,12,7,13],[6,14,6,15],[6,19,8,19]]}
[]
[]
[]
["Sr. No.","Faculty Name","Gender","Pan No","Designation","Date of Birth","Highest Qualification Mtech/Ph.D.","Year of Acquiring Highest Degree","Teaching Experience in No. of Years in relevant subject area - Regular Capacity - Year","Teaching Experience in No. of Years in relevant subject area - Regular Capacity - Months","Teaching Experience in No. of Years in relevant subject area - Contractual Capacity - Year","Teaching Experience in No. of Years in relevant subject area - Contractual Capacity - Months","Experience in Industry / Research Organisation in - Years","Experience in Industry / Research Organisation in - Months","Total Experience in No. of Years - Years","Total Experience in No. of Years - Months","Present Association Type","If Visiting Faculty : Number of semesters taught last year","Date of Joining the Institute",null,"Date of Leaving the Institute"]
[72,{"$f":"TODAY()","v":"2016-10-04"},{"$f":"YEAR(B5)","v":2016},{"$f":"+C5-20","v":1996},{"$f":"DATE(D5,12,31)","v":"1996-12-31"}]
["Details of all Faculty for Last 3 Academic Years (1.b)"]
["Sl. No.","Name of the Faculty ","Male/ Female","PAN No.","Designation","Date of Birth","Highest Qualification\nMTech/Ph.D.","Year of acquiring Highest Degree","Teaching Experience in No. of Years  in relevant subject area",null,null,null,"Experience in Industry/ Research Organisation in No. of Years, if any",null,"Total Experience in no. of years",null,"Type ","If Visiting Faculty:  number of semesters taught last year","Date of Joining the Institute","Job Status","Date of Leaving the Institute"]
[null,null,null,null,null,null,null,null,"Regular capacity",null,"Contractual capacity",null,null,null,"Years","Months"]
[null,null,null,null,null,null,null,null,"years","months","years","months","years","months"]
["[1]","[2]","[3]","[4]","[5]","[6]","[7]","[8]","[9]","[10]","[11]","[12]","[13]","[14]","[15]","[16]","[17]","[18]","[19]","[20]","[21]",null,"Year Total","Month total trunc","month total with mod","Age"]
["Sr. No.","Last name, First name, Middle name (full)","Male - M, Female - F","10 character","Professor \nAssociate Professor \nAsstt. Professor \nEmeritus Professor \nOther","DD-MM-YYYY","PG (MTech), PhD","YYYY","numeric only","numeric only","numeric only","numeric only","numeric only","numeric only","numeric only (computed by system)","numeric only (computed by system)","Regular / Adhoc / Contractual / Full-time visiting","1- for one semester only, 2- for both semesters","DD-MM-YYYY","DD-MM-YYYY\n1- Continue\n2 - Leaving","DD-MM-YYYY"]
[1,"ADWANI PRAKASH SUNDARLAL","M","ABGPA2931F","Professor","1956-10-10","PhD",2007,30,0,0,0,0,0,{"$f":"+W12+X12","v":30},{"$f":"+Y12","v":0},"Regular",0,"2013-10-23",1,"2015-12-31",null,{"$f":"(I12+K12+M12)","v":30},{"$f":"TRUNC((J12+L12+N12)/12)","v":0},{"$f":"MOD((J12+L12+N12),12)","v":0},{"$f":"DATEDIF(F12,$B$5,\"y\")-20","v":39}]
[{"$f":"+A12+1","v":2},"RAMAKANT SHRIVASTAVA","M","AEOP51011D","Associate Professor","1967-02-21","PhD",2009,22,11,0,0,0,0,22,11,"Regular",0,"1996-03-08",1,"2015-12-31",null,22,0,11,29]
[3,"CHIKALTHANKAR SANJAY BAHARATRAO","M","ACMPC9454A","Asstt. Professor","1968-03-01","PhD",2011,22,6,0,0,3,0,{"$f":"+W14+X14","v":25},{"$f":"+Y14","v":6},"Regular",0,"2003-11-01",1,"2015-12-31",null,{"$f":"(I14+K14+M14)","v":25},{"$f":"TRUNC((J14+L14+N14)/12)","v":0},{"$f":"MOD((J14+L14+N14),12)","v":6},{"$f":"DATEDIF(F14,$B$5,\"y\")-20","v":28}]
[4,"PATIL SUNIL APPARAO","M","ACNPP6778R","Associate Professor","1967-01-01","PhD",2015,24,3,0,0,3,0,{"$f":"+W15+X15","v":27},{"$f":"+Y15","v":3},"Regular",0,"2003-11-21",1,"2015-12-31",null,{"$f":"(I15+K15+M15)","v":27},{"$f":"TRUNC((J15+L15+N15)/12)","v":0},{"$f":"MOD((J15+L15+N15),12)","v":3},{"$f":"DATEDIF(F15,$B$5,\"y\")-20","v":29}]
[5,"MADAVI KISHOR RATIRAM","M","AJCPM2868D","Asstt. Professor","1972-09-25","M.Tech.",2014,14,0,1,0,1,0,{"$f":"+W16+X16","v":16},{"$f":"+Y16","v":0},"Regular",0,"2003-11-11",1,"2015-12-31",null,{"$f":"(I16+K16+M16)","v":16},{"$f":"TRUNC((J16+L16+N16)/12)","v":0},{"$f":"MOD((J16+L16+N16),12)","v":0},{"$f":"DATEDIF(F16,$B$5,\"y\")-20","v":24}]
[6,"HARNE MADHAVI SHASHIKUMAR","F","ALIPL0331M","Asstt. Professor","1971-08-18","M.Tech.",2004,19,0,0,0,1,0,{"$f":"+W17+X17","v":20},{"$f":"+Y17","v":0},"Regular",0,"2003-11-01",1,"2015-12-31",null,{"$f":"(I17+K17+M17)","v":20},{"$f":"TRUNC((J17+L17+N17)/12)","v":0},{"$f":"MOD((J17+L17+N17),12)","v":0},{"$f":"DATEDIF(F17,$B$5,\"y\")-20","v":25}]
[7,"SONAWANE SHYAM ARJUN","M","AXUPS9713P","Asstt. Professor","1976-07-31","PhD",2013,15,11,0,0,0,0,{"$f":"+W18+X18","v":15},{"$f":"+Y18","v":11},"Regular",0,"1999-10-18",1,"2015-12-31",null,{"$f":"(I18+K18+M18)","v":15},{"$f":"TRUNC((J18+L18+N18)/12)","v":0},{"$f":"MOD((J18+L18+N18),12)","v":11},{"$f":"DATEDIF(F18,$B$5,\"y\")-20","v":20}]
[8,"HAMBIRE UMESH VISHNU","M","AJCPM2738D","Asstt. Professor","1973-05-15","PhD",2014,15,0,0,0,6,0,{"$f":"+W19+X19","v":21},{"$f":"+Y19","v":0},"Regular",0,"2001-01-11",1,"2015-12-31",null,{"$f":"(I19+K19+M19)","v":21},{"$f":"TRUNC((J19+L19+N19)/12)","v":0},{"$f":"MOD((J19+L19+N19),12)","v":0},{"$f":"DATEDIF(F19,$B$5,\"y\")-20","v":23}]
[9,"AMBEKAR SHAILESH DAMODARRAO","M","AFNPA4206J","Asstt. Professor","1975-12-01","M.Tech.",2007,18,5,0,0,1,0,{"$f":"+W20+X20","v":19},{"$f":"+Y20","v":5},"Regular",0,"2011-01-05",1,"2015-12-31",null,{"$f":"(I20+K20+M20)","v":19},{"$f":"TRUNC((J20+L20+N20)/12)","v":0},{"$f":"MOD((J20+L20+N20),12)","v":5},{"$f":"DATEDIF(F20,$B$5,\"y\")-20","v":20}]
[10,"KUSHAL SURESH WASANKAR","M","AAUPW4859R","Asstt. Professor","1981-06-04","M.Tech.",2007,6,0,4,0,0,0,{"$f":"+W21+X21","v":10},{"$f":"+Y21","v":0},"Regular",0,"2011-10-20",1,"2015-12-31",null,{"$f":"(I21+K21+M21)","v":10},{"$f":"TRUNC((J21+L21+N21)/12)","v":0},{"$f":"MOD((J21+L21+N21),12)","v":0},{"$f":"DATEDIF(F21,$B$5,\"y\")-20","v":15}]
[11,"KULKARNI SAILI RAMESH","F","BCFPK0023H","Asstt. Professor","1981-05-04","M.Tech.",2009,5,0,3,4,0,0,{"$f":"+W22+X22","v":8},{"$f":"+Y22","v":4},"Regular",0,"2011-01-01",1,"2015-12-31",null,{"$f":"(I22+K22+M22)","v":8},{"$f":"TRUNC((J22+L22+N22)/12)","v":0},{"$f":"MOD((J22+L22+N22),12)","v":4},{"$f":"DATEDIF(F22,$B$5,\"y\")-20","v":15}]
[12,"RATHI MAHENDRA  GIRDHARILAL","M","ADWPR8182R","Asstt. Professor","1965-06-05","M.Tech.",2005,15,4,0,0,10,0,{"$f":"+W23+X23","v":25},{"$f":"+Y23","v":4},"Regular",0,"2000-08-04",1,"2015-12-31",null,{"$f":"(I23+K23+M23)","v":25},{"$f":"TRUNC((J23+L23+N23)/12)","v":0},{"$f":"MOD((J23+L23+N23),12)","v":4},{"$f":"DATEDIF(F23,$B$5,\"y\")-20","v":31}]
[13,"Dr. U. J. Kahalekar","M","ACOPK8746P","Professor","1962-06-06","PhD",1996,25,10,0,0,6,0,{"$f":"+W24+X24","v":31},{"$f":"+Y24","v":10},"Regular",0,"1990-01-02",1,"2015-12-31",null,{"$f":"(I24+K24+M24)","v":31},{"$f":"TRUNC((J24+L24+N24)/12)","v":0},{"$f":"MOD((J24+L24+N24),12)","v":10},{"$f":"DATEDIF(F24,$B$5,\"y\")-20","v":34}]
[14,"Dr. R. V. Shetkar","M","AEBPS6877G","Associate Professor","1963-08-15","PhD",2009,29,4,0,0,0,0,{"$f":"+W25+X25","v":29},{"$f":"+Y25","v":4},"Regular",0,"2010-07-20",1,"2015-12-31",null,{"$f":"(I25+K25+M25)","v":29},{"$f":"TRUNC((J25+L25+N25)/12)","v":0},{"$f":"MOD((J25+L25+N25),12)","v":4},{"$f":"DATEDIF(F25,$B$5,\"y\")-20","v":33}]
[15,"Dr. K. A. Patil","M","ACDPP0125E","Associate Professor","1967-03-02","PhD",2001,25,6,0,0,0,0,{"$f":"+W26+X26","v":25},{"$f":"+Y26","v":6},"Regular",0,"1996-06-19",1,"2015-12-31",null,{"$f":"(I26+K26+M26)","v":25},{"$f":"TRUNC((J26+L26+N26)/12)","v":0},{"$f":"MOD((J26+L26+N26),12)","v":6},{"$f":"DATEDIF(F26,$B$5,\"y\")-20","v":29}]
[16,"Prof. A. M. Mokadam","M","ABCPM6823E","Associate Professor","1964-12-31","M.Tech.",1993,19,8,0,0,9,6,{"$f":"+W27+X27","v":29},{"$f":"+Y27","v":2},"Regular",0,"1996-02-02",1,"2015-12-31",null,{"$f":"(I27+K27+M27)","v":28},{"$f":"TRUNC((J27+L27+N27)/12)","v":1},{"$f":"MOD((J27+L27+N27),12)","v":2},{"$f":"DATEDIF(F27,$B$5,\"y\")-20","v":31}]
[17,"Dr. R. M. Damgir","M","ABGPD0978D","Associate Professor","1963-01-07","PhD",2011,25,7,0,0,2,2,{"$f":"+W28+X28","v":27},{"$f":"+Y28","v":9},"Regular",0,"1998-04-09",1,"2015-12-31",null,{"$f":"(I28+K28+M28)","v":27},{"$f":"TRUNC((J28+L28+N28)/12)","v":0},{"$f":"MOD((J28+L28+N28),12)","v":9},{"$f":"DATEDIF(F28,$B$5,\"y\")-20","v":33}]
[18,"Prof. G. K. Patil","M","AKGPP6574L","Asstt. Professor","1971-12-22","M.Tech.",2007,17,1,0,0,0,0,{"$f":"+W29+X29","v":17},{"$f":"+Y29","v":1},"Regular",0,"1998-11-23",1,"2015-12-31",null,{"$f":"(I29+K29+M29)","v":17},{"$f":"TRUNC((J29+L29+N29)/12)","v":0},{"$f":"MOD((J29+L29+N29),12)","v":1},{"$f":"DATEDIF(F29,$B$5,\"y\")-20","v":24}]
[19,"Dr. D. G. Regulwar","M","AEVPR7403P","Associate Professor","1964-07-17","PhD",2006,26,1,0,0,0,0,{"$f":"+W30+X30","v":26},{"$f":"+Y30","v":1},"Regular",0,"1998-10-11",1,"2015-12-31",null,{"$f":"(I30+K30+M30)","v":26},{"$f":"TRUNC((J30+L30+N30)/12)","v":0},{"$f":"MOD((J30+L30+N30),12)","v":1},{"$f":"DATEDIF(F30,$B$5,\"y\")-20","v":32}]
[20,"Dr. P. A. Sadgir","M","AEWPS2349E","Associate Professor","1967-10-21","PhD",2007,25,4,0,0,1,0,{"$f":"+W31+X31","v":26},{"$f":"+Y31","v":4},"Regular",0,"2003-04-11",1,"2015-12-31",null,{"$f":"(I31+K31+M31)","v":26},{"$f":"TRUNC((J31+L31+N31)/12)","v":0},{"$f":"MOD((J31+L31+N31),12)","v":4},{"$f":"DATEDIF(F31,$B$5,\"y\")-20","v":28}]
[21,"Prof. S. S. Koranne","F","AGDPK7686H","Asstt. Professor","1967-10-24","M.Tech.",1998,25,0,0,0,0,0,{"$f":"+W32+X32","v":25},{"$f":"+Y32","v":0},"Regular",0,"2003-04-11",1,"2015-12-31",null,{"$f":"(I32+K32+M32)","v":25},{"$f":"TRUNC((J32+L32+N32)/12)","v":0},{"$f":"MOD((J32+L32+N32),12)","v":0},{"$f":"DATEDIF(F32,$B$5,\"y\")-20","v":28}]
[22,"Gaikwad Varsha Prabhakar","F","AXOPG6408R","Asstt. Professor","1981-02-16","M.Tech.",2012,4,11,4,2,0,0,{"$f":"+W33+X33","v":9},{"$f":"+Y33","v":1},"Regular",0,"2011-01-07",1,"2015-12-31",null,{"$f":"(I33+K33+M33)","v":8},{"$f":"TRUNC((J33+L33+N33)/12)","v":1},{"$f":"MOD((J33+L33+N33),12)","v":1},{"$f":"DATEDIF(F33,$B$5,\"y\")-20","v":15}]
[23,"Gaikwad Chitra Madhusudan","F","AQKPG2673D","Asstt. Professor","1978-04-08","M.Tech.",2007,9,9,2,7,0,0,{"$f":"+W34+X34","v":12},{"$f":"+Y34","v":4},"Regular",0,"2011-01-11",1,"2015-12-31",null,{"$f":"(I34+K34+M34)","v":11},{"$f":"TRUNC((J34+L34+N34)/12)","v":1},{"$f":"MOD((J34+L34+N34),12)","v":4},{"$f":"DATEDIF(F34,$B$5,\"y\")-20","v":18}]
[24,"Gandle Komal Shatrughan","F","ASXPG9976A","Asstt. Professor","1984-05-05","M.Tech.",2014,6,7,1,5,0,0,{"$f":"+W35+X35","v":8},{"$f":"+Y35","v":0},"Regular",0,"2011-01-06",1,"2015-12-31",null,{"$f":"(I35+K35+M35)","v":7},{"$f":"TRUNC((J35+L35+N35)/12)","v":1},{"$f":"MOD((J35+L35+N35),12)","v":0},{"$f":"DATEDIF(F35,$B$5,\"y\")-20","v":12}]
[25,"Ghule Anjana Narayanrao","F","AGRPJ2868G","Asstt. Professor","1976-03-05","M.Tech.",2008,9,4,6,10,0,0,{"$f":"+W36+X36","v":16},{"$f":"+Y36","v":2},"Regular",0,"2011-01-14",1,"2015-12-31",null,{"$f":"(I36+K36+M36)","v":15},{"$f":"TRUNC((J36+L36+N36)/12)","v":1},{"$f":"MOD((J36+L36+N36),12)","v":2},{"$f":"DATEDIF(F36,$B$5,\"y\")-20","v":20}]
[26,"Nemade Sangita Balkrishna","F","AQTPP7389L","Asstt. Professor","1976-02-07","M.Tech.",2008,8,2,3,9,0,0,{"$f":"+W37+X37","v":11},{"$f":"+Y37","v":11},"Regular",0,"2011-04-08",1,"2015-12-31",null,{"$f":"(I37+K37+M37)","v":11},{"$f":"TRUNC((J37+L37+N37)/12)","v":0},{"$f":"MOD((J37+L37+N37),12)","v":11},{"$f":"DATEDIF(F37,$B$5,\"y\")-20","v":20}]
[27,"Patil Pallavi Prabhakar","F","AQHPP6048C","Asstt. Professor","1982-08-28","M.Tech.",2015,4,11,0,0,0,0,{"$f":"+W38+X38","v":4},{"$f":"+Y38","v":11},"Regular",0,"2011-01-29",1,"2015-12-31",null,{"$f":"(I38+K38+M38)","v":4},{"$f":"TRUNC((J38+L38+N38)/12)","v":0},{"$f":"MOD((J38+L38+N38),12)","v":11},{"$f":"DATEDIF(F38,$B$5,\"y\")-20","v":14}]
[28,"Chavan Smita Marutirao","F","AKYPC6163A","Asstt. Professor","1981-11-29","M.Tech.",2014,7,3,0,0,0,0,{"$f":"+W39+X39","v":7},{"$f":"+Y39","v":3},"Regular",0,"2011-01-04",1,"2015-12-31",null,{"$f":"(I39+K39+M39)","v":7},{"$f":"TRUNC((J39+L39+N39)/12)","v":0},{"$f":"MOD((J39+L39+N39),12)","v":3},{"$f":"DATEDIF(F39,$B$5,\"y\")-20","v":14}]
[29,"Laddha Shilpa Satishkumar","F","AMAPK0843M","Asstt. Professor","1978-09-22","M.Tech.",2007,4,2,0,0,0,7,{"$f":"+W40+X40","v":4},{"$f":"+Y40","v":9},"Regular",0,"2011-10-07",1,"2015-12-31",null,{"$f":"(I40+K40+M40)","v":4},{"$f":"TRUNC((J40+L40+N40)/12)","v":0},{"$f":"MOD((J40+L40+N40),12)","v":9},{"$f":"DATEDIF(F40,$B$5,\"y\")-20","v":18}]
[30,"Sarode Kalpana Ramesh","F","AJWPC4885E","Asstt. Professor","1975-08-31","M.Tech.",2008,4,0,0,0,0,0,{"$f":"+W41+X41","v":4},{"$f":"+Y41","v":0},"Regular",0,"2011-12-27",1,"2015-12-31",null,{"$f":"(I41+K41+M41)","v":4},{"$f":"TRUNC((J41+L41+N41)/12)","v":0},{"$f":"MOD((J41+L41+N41),12)","v":0},{"$f":"DATEDIF(F41,$B$5,\"y\")-20","v":21}]
[31,"Dr.A.S. Bhalchandra","F","ANMPB7738H","Professor","1964-01-03","PhD",2004,30,0,0,0,0,0,{"$f":"+W42+X42","v":30},{"$f":"+Y42","v":0},"Regular",0,"2011-06-27",1,"2015-12-31",null,{"$f":"(I42+K42+M42)","v":30},{"$f":"TRUNC((J42+L42+N42)/12)","v":0},{"$f":"MOD((J42+L42+N42),12)","v":0},{"$f":"DATEDIF(F42,$B$5,\"y\")-20","v":32}]
[32,"Prof. S.R. Hirekhan","M","AATPH0737Q","Associate Professor","1968-11-01","M.Tech.",1996,25,0,0,0,0,0,{"$f":"+W43+X43","v":25},{"$f":"+Y43","v":0},"Regular",0,"2012-06-06",1,"2015-12-31",null,{"$f":"(I43+K43+M43)","v":25},{"$f":"TRUNC((J43+L43+N43)/12)","v":0},{"$f":"MOD((J43+L43+N43),12)","v":0},{"$f":"DATEDIF(F43,$B$5,\"y\")-20","v":27}]
[33,"Prof. R.P.Chaudhari","M","AAPPC3056M","Associate Professor","1964-04-18","M.Tech.",1993,27,0,0,0,0,0,{"$f":"+W44+X44","v":27},{"$f":"+Y44","v":0},"Regular",0,"2007-07-07",1,"2015-12-31",null,{"$f":"(I44+K44+M44)","v":27},{"$f":"TRUNC((J44+L44+N44)/12)","v":0},{"$f":"MOD((J44+L44+N44),12)","v":0},{"$f":"DATEDIF(F44,$B$5,\"y\")-20","v":32}]
[34,"Dr. M.H. Nerkar","M","AAKPN6995B","Associate Professor","1961-08-19","PhD",1999,27,0,0,0,0,0,{"$f":"+W45+X45","v":27},{"$f":"+Y45","v":0},"Regular",0,"2013-06-08",1,"2015-12-31",null,{"$f":"(I45+K45+M45)","v":27},{"$f":"TRUNC((J45+L45+N45)/12)","v":0},{"$f":"MOD((J45+L45+N45),12)","v":0},{"$f":"DATEDIF(F45,$B$5,\"y\")-20","v":35}]
[35,"Prof. N.R. Kolhare","F","AJRPK5824G","Associate Professor","1976-02-22","M.Tech.",1998,17,0,0,0,1,0,{"$f":"+W46+X46","v":18},{"$f":"+Y46","v":0},"Regular",0,"2003-11-01",1,"2015-12-31",null,{"$f":"(I46+K46+M46)","v":18},{"$f":"TRUNC((J46+L46+N46)/12)","v":0},{"$f":"MOD((J46+L46+N46),12)","v":0},{"$f":"DATEDIF(F46,$B$5,\"y\")-20","v":20}]
[36,"Dr.A.R.Karwankar","M","ACOPK7562P","Assistant Professor","1968-04-02","PhD",2011,25,0,0,0,0,0,{"$f":"+W47+X47","v":25},{"$f":"+Y47","v":0},"Regular",0,"2003-11-17",1,"2015-12-31",null,{"$f":"(I47+K47+M47)","v":25},{"$f":"TRUNC((J47+L47+N47)/12)","v":0},{"$f":"MOD((J47+L47+N47),12)","v":0},{"$f":"DATEDIF(F47,$B$5,\"y\")-20","v":28}]
[37,"Prof.N. G. Pantawane","F","AHTPP3700G","Assistant Professor","1973-04-14","M.Tech.",2001,19,0,0,0,0,0,{"$f":"+W48+X48","v":19},{"$f":"+Y48","v":0},"Regular",0,"2004-07-05",1,"2015-12-31",null,{"$f":"(I48+K48+M48)","v":19},{"$f":"TRUNC((J48+L48+N48)/12)","v":0},{"$f":"MOD((J48+L48+N48),12)","v":0},{"$f":"DATEDIF(F48,$B$5,\"y\")-20","v":23}]
[38,"Prof. P.H. Bhagat","F","ASUPB4999D","Assistant Professor","1983-02-18","M.Tech.",2009,6,0,0,0,0,0,{"$f":"+W49+X49","v":6},{"$f":"+Y49","v":0},"Regular",0,"2010-08-16",1,"2015-12-31",null,{"$f":"(I49+K49+M49)","v":6},{"$f":"TRUNC((J49+L49+N49)/12)","v":0},{"$f":"MOD((J49+L49+N49),12)","v":0},{"$f":"DATEDIF(F49,$B$5,\"y\")-20","v":13}]
[39,"Dr. V.R. Ratnaparkhe","F","AAUPR9651A","Assistant Professor","1968-05-05","PhD",2009,18,0,0,0,0,0,{"$f":"+W50+X50","v":18},{"$f":"+Y50","v":0},"Regular",0,"2011-01-12",1,"2015-12-31",null,{"$f":"(I50+K50+M50)","v":18},{"$f":"TRUNC((J50+L50+N50)/12)","v":0},{"$f":"MOD((J50+L50+N50),12)","v":0},{"$f":"DATEDIF(F50,$B$5,\"y\")-20","v":28}]
[40,"Prof. S.S. Agrawal","F","ADBPA7858G","Assistant Professor","1967-01-02","M.Tech.",2001,19,0,0,0,0,0,{"$f":"+W51+X51","v":19},{"$f":"+Y51","v":0},"Regular",0,"2011-01-12",1,"2015-12-31",null,{"$f":"(I51+K51+M51)","v":19},{"$f":"TRUNC((J51+L51+N51)/12)","v":0},{"$f":"MOD((J51+L51+N51),12)","v":0},{"$f":"DATEDIF(F51,$B$5,\"y\")-20","v":29}]
[41,"Dr. S.D. Bharkad","F","AHMPB9827H","Assistant Professor","1981-09-01","PhD",2013,12,0,0,0,0,0,{"$f":"+W52+X52","v":12},{"$f":"+Y52","v":0},"Regular",0,"2010-12-22",1,"2015-12-31",null,{"$f":"(I52+K52+M52)","v":12},{"$f":"TRUNC((J52+L52+N52)/12)","v":0},{"$f":"MOD((J52+L52+N52),12)","v":0},{"$f":"DATEDIF(F52,$B$5,\"y\")-20","v":15}]
[42,"Prof. S.B. Gundre","F","AXGPG4842H","Assistant Professor","1983-06-15","M.Tech.",2008,6,0,0,0,0,0,{"$f":"+W53+X53","v":6},{"$f":"+Y53","v":0},"Regular",0,"2011-06-26",1,"2015-12-31",null,{"$f":"(I53+K53+M53)","v":6},{"$f":"TRUNC((J53+L53+N53)/12)","v":0},{"$f":"MOD((J53+L53+N53),12)","v":0},{"$f":"DATEDIF(F53,$B$5,\"y\")-20","v":13}]
[43,"Prof. S.R. Kulkarni","F","APYPD9365E","Assistant Professor","1984-01-02","M.Tech.",2012,6,0,0,0,2,0,{"$f":"+W54+X54","v":8},{"$f":"+Y54","v":0},"Regular",0,"2011-06-28",1,"2015-12-31",null,{"$f":"(I54+K54+M54)","v":8},{"$f":"TRUNC((J54+L54+N54)/12)","v":0},{"$f":"MOD((J54+L54+N54),12)","v":0},{"$f":"DATEDIF(F54,$B$5,\"y\")-20","v":12}]
[44,"Prof. M.R. Joshi","F","AEBPJ2069R","Assistant Professor","1968-01-31","M.Tech.",2013,21,0,0,0,0,0,{"$f":"+W55+X55","v":21},{"$f":"+Y55","v":0},"Regular",0,"2007-10-04",1,"2015-12-31",null,{"$f":"(I55+K55+M55)","v":21},{"$f":"TRUNC((J55+L55+N55)/12)","v":0},{"$f":"MOD((J55+L55+N55),12)","v":0},{"$f":"DATEDIF(F55,$B$5,\"y\")-20","v":28}]
[45,"M.B NAGORI","F","AMAPK5740P","Asstt. Professor","1974-07-22","M.Tech.",2001,18,0,0,0,0,0,{"$f":"+W56+X56","v":18},{"$f":"+Y56","v":0},"Regular",0,"2002-02-14",1,"2015-12-31",null,{"$f":"(I56+K56+M56)","v":18},{"$f":"TRUNC((J56+L56+N56)/12)","v":0},{"$f":"MOD((J56+L56+N56),12)","v":0},{"$f":"DATEDIF(F56,$B$5,\"y\")-20","v":22}]
[46,"S.G. SHIKALPURE","M","AVXPS2076A","Asstt. Professor","1974-05-03","M.Tech.",2009,14,0,0,0,0,0,{"$f":"+W57+X57","v":14},{"$f":"+Y57","v":0},"Regular",0,"2009-08-29",1,"2015-12-31",null,{"$f":"(I57+K57+M57)","v":14},{"$f":"TRUNC((J57+L57+N57)/12)","v":0},{"$f":"MOD((J57+L57+N57),12)","v":0},{"$f":"DATEDIF(F57,$B$5,\"y\")-20","v":22}]
[47,"V. A. CHAKKARWAR","F","ARSPM4026H","Asstt. Professor","1979-03-14","M.Tech.",2008,5,5,5,6,0,0,{"$f":"+W58+X58","v":10},{"$f":"+Y58","v":11},"Regular",0,"2005-01-25",1,"2015-12-31",null,{"$f":"(I58+K58+M58)","v":10},{"$f":"TRUNC((J58+L58+N58)/12)","v":0},{"$f":"MOD((J58+L58+N58),12)","v":11},{"$f":"DATEDIF(F58,$B$5,\"y\")-20","v":17}]
[48,"P. V. KULKARNI","F","BEMPK9516E","Asstt. Professor","1980-06-13","M.Tech.",2007,7,3,6,8,0,0,{"$f":"+W59+X59","v":13},{"$f":"+Y59","v":11},"Regular",0,"2011-01-20",1,"2015-12-31",null,{"$f":"(I59+K59+M59)","v":13},{"$f":"TRUNC((J59+L59+N59)/12)","v":0},{"$f":"MOD((J59+L59+N59),12)","v":11},{"$f":"DATEDIF(F59,$B$5,\"y\")-20","v":16}]
[49,"A. M. KHAN","F","CRIPS5113F","Asstt. Professor","1981-02-21","M.Tech.",2013,4,10,8,1,0,0,{"$f":"+W60+X60","v":12},{"$f":"+Y60","v":11},"Regular",0,"2011-02-09",1,"2015-12-31",null,{"$f":"(I60+K60+M60)","v":12},{"$f":"TRUNC((J60+L60+N60)/12)","v":0},{"$f":"MOD((J60+L60+N60),12)","v":11},{"$f":"DATEDIF(F60,$B$5,\"y\")-20","v":15}]
[50,"V. J. PAWAR","M","ASDPP7789E","Asstt. Professor","1984-03-11","M.Tech.",2014,5,0,1,4,2,0,{"$f":"+W61+X61","v":8},{"$f":"+Y61","v":4},"Regular",0,"2011-01-07",1,"2015-12-31",null,{"$f":"(I61+K61+M61)","v":8},{"$f":"TRUNC((J61+L61+N61)/12)","v":0},{"$f":"MOD((J61+L61+N61),12)","v":4},{"$f":"DATEDIF(F61,$B$5,\"y\")-20","v":12}]
[51,"V. A. INJAMURI","F","ABPQI7798E","Asstt. Professor","1983-10-25","M.Tech.",2015,1,1,5,0,0,0,{"$f":"+W62+X62","v":6},{"$f":"+Y62","v":1},"Regular",0,"2009-11-03",1,"2015-12-31",null,{"$f":"(I62+K62+M62)","v":6},{"$f":"TRUNC((J62+L62+N62)/12)","v":0},{"$f":"MOD((J62+L62+N62),12)","v":1},{"$f":"DATEDIF(F62,$B$5,\"y\")-20","v":12}]
[52,"P.D. PATHAK","M","AVQPP5256M","Asstt. Professor","1986-07-26","M.Tech.",2013,6,0,0,0,2,0,{"$f":"+W63+X63","v":8},{"$f":"+Y63","v":0},"Regular",0,"2009-11-07",1,"2015-12-31",null,{"$f":"(I63+K63+M63)","v":8},{"$f":"TRUNC((J63+L63+N63)/12)","v":0},{"$f":"MOD((J63+L63+N63),12)","v":0},{"$f":"DATEDIF(F63,$B$5,\"y\")-20","v":10}]
[53,"VIVEK KSHIRSAGAR","M","ACOPK9154B","Asstt. Professor","1972-05-17","M.Tech.",2001,15,10,0,0,0,0,{"$f":"+W64+X64","v":15},{"$f":"+Y64","v":10},"Regular",0,"2001-11-21",1,"2015-12-31",null,{"$f":"(I64+K64+M64)","v":15},{"$f":"TRUNC((J64+L64+N64)/12)","v":0},{"$f":"MOD((J64+L64+N64),12)","v":10},{"$f":"DATEDIF(F64,$B$5,\"y\")-20","v":24}]
[54,"A.K.GULVE","M","ABHPG2570M","Asstt. Professor","1971-05-14","M.Tech.",1998,22,0,0,0,0,0,{"$f":"+W65+X65","v":22},{"$f":"+Y65","v":0},"Regular",0,"2000-02-23",1,"2015-12-31",null,{"$f":"(I65+K65+M65)","v":22},{"$f":"TRUNC((J65+L65+N65)/12)","v":0},{"$f":"MOD((J65+L65+N65),12)","v":0},{"$f":"DATEDIF(F65,$B$5,\"y\")-20","v":25}]
[55,"S.D.SAPKAL","F","AVFPS2106K","Asstt. Professor","1975-01-01","M.Tech.",2005,15,10,0,0,0,0,{"$f":"+W66+X66","v":15},{"$f":"+Y66","v":10},"Regular",0,"2000-02-14",1,"2015-12-31",null,{"$f":"(I66+K66+M66)","v":15},{"$f":"TRUNC((J66+L66+N66)/12)","v":0},{"$f":"MOD((J66+L66+N66),12)","v":10},{"$f":"DATEDIF(F66,$B$5,\"y\")-20","v":21}]
[56,"Thosar Archana Gopal","F","AAIPT3503B","Associate Professor","1971-09-22","PhD",2009,19,6,0,0,0,0,{"$f":"+W67+X67","v":19},{"$f":"+Y67","v":6},"Regular",0,"2005-06-25",1,"2015-12-31",null,{"$f":"(I67+K67+M67)","v":19},{"$f":"TRUNC((J67+L67+N67)/12)","v":0},{"$f":"MOD((J67+L67+N67),12)","v":6},{"$f":"DATEDIF(F67,$B$5,\"y\")-20","v":25}]
[57,"Bhole Anita Arun","F","AAYPB1775D","Associate Professor","1966-01-29","M.Tech.",1991,26,0,0,0,1,6,{"$f":"+W68+X68","v":27},{"$f":"+Y68","v":6},"Regular",0,"2000-11-07",1,"2015-12-31",null,{"$f":"(I68+K68+M68)","v":27},{"$f":"TRUNC((J68+L68+N68)/12)","v":0},{"$f":"MOD((J68+L68+N68),12)","v":6},{"$f":"DATEDIF(F68,$B$5,\"y\")-20","v":30}]
[58,"Dhamse Sanjay  sadashivrao","M","ABGPD7514D","Associate Professor","1964-08-24","M.Tech.",1997,28,0,0,0,0,0,{"$f":"+W69+X69","v":28},{"$f":"+Y69","v":0},"Regular",0,"1992-12-24",1,"2015-12-31",null,{"$f":"(I69+K69+M69)","v":28},{"$f":"TRUNC((J69+L69+N69)/12)","v":0},{"$f":"MOD((J69+L69+N69),12)","v":0},{"$f":"DATEDIF(F69,$B$5,\"y\")-20","v":32}]
[59,"Kulkarni Vandana Abhay","F","AAUPD1546N","Associate Professor","1964-12-28","PhD",2009,23,0,0,0,3,0,{"$f":"+W70+X70","v":26},{"$f":"+Y70","v":0},"Regular",0,"1998-09-03",1,"2015-12-31",null,{"$f":"(I70+K70+M70)","v":26},{"$f":"TRUNC((J70+L70+N70)/12)","v":0},{"$f":"MOD((J70+L70+N70),12)","v":0},{"$f":"DATEDIF(F70,$B$5,\"y\")-20","v":31}]
[60,"Bhasme Nitin Ramesh","M","AAYPB1766G","Associate Professor","1971-05-30","PhD",2013,21,0,0,0,0,0,{"$f":"+W71+X71","v":21},{"$f":"+Y71","v":0},"Regular",0,"1998-09-01",1,"2015-12-31",null,{"$f":"(I71+K71+M71)","v":21},{"$f":"TRUNC((J71+L71+N71)/12)","v":0},{"$f":"MOD((J71+L71+N71),12)","v":0},{"$f":"DATEDIF(F71,$B$5,\"y\")-20","v":25}]
[61,"Shinde Sanjay Madanrao","M","AWYPS1546B","Associate Professor","1966-07-18","M.Tech.",1998,25,0,0,0,0,0,{"$f":"+W72+X72","v":25},{"$f":"+Y72","v":0},"Regular",0,"2002-04-30",1,"2015-12-31",null,{"$f":"(I72+K72+M72)","v":25},{"$f":"TRUNC((J72+L72+N72)/12)","v":0},{"$f":"MOD((J72+L72+N72),12)","v":0},{"$f":"DATEDIF(F72,$B$5,\"y\")-20","v":30}]
[62,"Bachawad Manjusha Rajesh","F","AAYPC3001F","Associate Professor","1970-05-13","M.Tech.",2001,21,0,0,0,0,0,{"$f":"+W73+X73","v":21},{"$f":"+Y73","v":0},"Regular",0,"2003-12-12",1,"2015-12-31",null,{"$f":"(I73+K73+M73)","v":21},{"$f":"TRUNC((J73+L73+N73)/12)","v":0},{"$f":"MOD((J73+L73+N73),12)","v":0},{"$f":"DATEDIF(F73,$B$5,\"y\")-20","v":26}]
[63,"Dhote Vyanktesh Panchkumar","M","AICPD0805C","Asstt. Professor","1977-05-16","M.Tech.",2003,16,0,0,0,0,0,{"$f":"+W74+X74","v":16},{"$f":"+Y74","v":0},"Regular",0,"2010-08-27",1,"2015-12-31",null,{"$f":"(I74+K74+M74)","v":16},{"$f":"TRUNC((J74+L74+N74)/12)","v":0},{"$f":"MOD((J74+L74+N74),12)","v":0},{"$f":"DATEDIF(F74,$B$5,\"y\")-20","v":19}]
[64,"Swami Panchayya Shankaryya","M","ACVPS2693A","Associate Professor","1966-06-10","M.Tech.",1999,21,0,0,0,0,0,{"$f":"+W75+X75","v":21},{"$f":"+Y75","v":0},"Regular",0,"2008-07-08",1,"2015-12-31",null,{"$f":"(I75+K75+M75)","v":21},{"$f":"TRUNC((J75+L75+N75)/12)","v":0},{"$f":"MOD((J75+L75+N75),12)","v":0},{"$f":"DATEDIF(F75,$B$5,\"y\")-20","v":30}]
[65,"Mopari Shrikant S.","M","APZPN3887R","Asstt. Professor","1977-02-24","M.Tech.",2005,13,0,0,0,1,0,{"$f":"+W76+X76","v":14},{"$f":"+Y76","v":0},"Regular",0,"2010-08-27",1,"2015-12-31",null,{"$f":"(I76+K76+M76)","v":14},{"$f":"TRUNC((J76+L76+N76)/12)","v":0},{"$f":"MOD((J76+L76+N76),12)","v":0},{"$f":"DATEDIF(F76,$B$5,\"y\")-20","v":19}]
[66,"Murnal Pranesh Bhimrao","M","AFDPM1634C","Professor","1961-07-15","PhD",2000,31,0,0,0,0,0,{"$f":"+W77+X77","v":31},{"$f":"+Y77","v":0},"Regular",0,"2011-05-11",1,"2015-12-31",null,{"$f":"(I77+K77+M77)","v":31},{"$f":"TRUNC((J77+L77+N77)/12)","v":0},{"$f":"MOD((J77+L77+N77),12)","v":0},{"$f":"DATEDIF(F77,$B$5,\"y\")-20","v":35}]
[67,"Londhe Rajabhao Subarao ","M","AAHPL2348M","Associate Professor","1965-05-16","PhD",2008,23,0,0,0,6,0,{"$f":"+W78+X78","v":29},{"$f":"+Y78","v":0},"Regular",0,"2006-09-26",1,"2015-12-31",null,{"$f":"(I78+K78+M78)","v":29},{"$f":"TRUNC((J78+L78+N78)/12)","v":0},{"$f":"MOD((J78+L78+N78),12)","v":0},{"$f":"DATEDIF(F78,$B$5,\"y\")-20","v":31}]
[68,"Deshmukh Satish Narayanrao","M","AMTPD8141L","Associate Professor","1965-08-06","M.Tech.",1991,24,4,0,0,0,0,{"$f":"+W79+X79","v":24},{"$f":"+Y79","v":4},"Regular",0,"2008-07-20",1,"2015-12-31",null,{"$f":"(I79+K79+M79)","v":24},{"$f":"TRUNC((J79+L79+N79)/12)","v":0},{"$f":"MOD((J79+L79+N79),12)","v":4},{"$f":"DATEDIF(F79,$B$5,\"y\")-20","v":31}]
[69,"Shaikh Mohummad Gulab","M","ACVPS8793D","Associate Professor","1965-11-03","PhD",2006,25,4,0,0,0,0,{"$f":"+W80+X80","v":25},{"$f":"+Y80","v":4},"Regular",0,"2007-06-15",1,"2015-12-31",null,{"$f":"(I80+K80+M80)","v":25},{"$f":"TRUNC((J80+L80+N80)/12)","v":0},{"$f":"MOD((J80+L80+N80),12)","v":4},{"$f":"DATEDIF(F80,$B$5,\"y\")-20","v":30}]
[70,"Bhalchandra Surekha Anil","F","AHEPB2924M","Associate Professor","1964-06-06","PhD",2001,27,3,0,0,2,0,{"$f":"+W81+X81","v":29},{"$f":"+Y81","v":3},"Regular",0,"2003-11-02",1,"2015-12-31",null,{"$f":"(I81+K81+M81)","v":29},{"$f":"TRUNC((J81+L81+N81)/12)","v":0},{"$f":"MOD((J81+L81+N81),12)","v":3},{"$f":"DATEDIF(F81,$B$5,\"y\")-20","v":32}]
[71,"Verma Mahavir Balmukund","M","AAQPV5461Q","Associate Professor","1959-07-02","PhD",2013,28,5,2,0,4,8,{"$f":"+W82+X82","v":35},{"$f":"+Y82","v":1},"Regular",0,"1987-04-28",1,"2015-12-31",null,{"$f":"(I82+K82+M82)","v":34},{"$f":"TRUNC((J82+L82+N82)/12)","v":1},{"$f":"MOD((J82+L82+N82),12)","v":1},{"$f":"DATEDIF(F82,$B$5,\"y\")-20","v":37}]
[72,"Ghorade Ishwar Baburao ","M","ATFPG0710R","Asstt. Professor","1983-09-05","PhD",2014,0,0,7,0,0,0,{"$f":"+W83+X83","v":7},{"$f":"+Y83","v":0},"Contractual",2,"2014-07-01",1,"2015-12-31",null,{"$f":"(I83+K83+M83)","v":7},{"$f":"TRUNC((J83+L83+N83)/12)","v":0},{"$f":"MOD((J83+L83+N83),12)","v":0},{"$f":"DATEDIF(F83,$B$5,\"y\")-20","v":13}]

{"sheet":"IPR","index":4,"n_rows":26,"n_cols":10,"rows_kept":26,"cut":false,"hidden":false,"merged":[[26,1,26,2],[4,1,4,12],[7,2,7,11],[8,2,8,11],[9,2,9,11],[5,2,5,7],[24,2,24,8],[25,2,25,8],[14,6,14,7],[1,2,1,18],[2,2,2,11],[12,0,15,0],[14,1,15,1],[12,1,13,7],[14,2,14,5],[12,8,14,9]]}
[]
[]
[]
["Sr. No.","Year","Patents - Filed","Patents - Granted","Patents - Licensed","Patents - Collaborative patents","Designs - Filed ","Designs - Granted","Earning from Patents etc for last 3 financial year (2.c) - Year","Earning from Patents etc for last 3 financial year (2.c) - Amount (Rs. In Lakhs)"]
[null,"Details of Publication, Citations and IPR year-wise for the last 3 years (Calendar Years: 2012, 2013, 2014)"]
[null,null,"Details of Publications of the Institute (2.a)"]
[]
[null,1,"Provide a list of publications for past three calendar years preferably in a standard citation format such as Nature/ IEEE/ APA/ MLA. "]
[null,2,"Each publication should include author, complete title of the article or chapter in a book or the book, Volume and issue No.( in case of journal article), page nos. (starting page - ending page in case of journals article and chapters in books and total no. of pages in case of books), year of publication, ISSN No. in case of journals and ISBN no. in case of books.     "]
[null,3,"First provide list of articles published in national and international journals, followed by chapters in books/ published conference proceedings and list of books for past three calendar years."]
[]
[]
["Sl. No.","IPR (Details for Last 3 years) (2.c)",null,null,null,null,null,null,"Earning from Patents etc for last 3 financial years (2.c)"]
[]
[null,"Year","Patents",null,null,null,"Designs"]
[null,null,"Filed ","Granted","Licensed ","Collaborative patents","Filed ","Granted","Year","Amount\n(Rs. In Lakhs)"]
["[1]","[2]","[3]","[4]","[5]","[6]","[7]","[8]","[9]","[10]"]
["Input Type=>","YYYY","numeric only","numeric only","numeric only","numeric only","numeric only","numeric only","Financial year in format 2014-15, 2013-14, 2012-13","numeric only upto 2 decimal"]
[1,2014,2,0,0,0,0,2,"2014-15",0]
[2,2013,2,0,0,0,0,2,"2013-14",0]
[3,2012,1,1,1,1,0,0,"2012-13",0]
[]
[]
[null,"Notes on \"IPR\""]
[null,"Col: 3-8","Put only numeric value for no. of patents and design. Col-6 denotes total no. of patents in collaborations with other institutions."]
[null,"Col: 9-10","Total earnings from patents etc.  in respective financial year."]

{"sheet":"Sponsored Research","index":5,"n_rows":20,"n_cols":5,"rows_kept":20,"cut":false,"hidden":false,"merged":[[1,2,1,18],[3,0,3,4],[8,0,9,0],[6,1,7,4],[8,1,9,1],[8,2,9,2],[8,3,9,3],[8,4,9,4]]}
[]
[]
[]
["Details of Sponsored Research  year-wise for the last 3 years (Financial Years: 2012-13, 2013-14, 2014-15)"]
["Sr. No.","Year","Title of Project","Funding Agency","Amount"]
[]
[{"$f":"COUNT(A13:A9933)","v":8},"Sponsored Research (2.e)\n"]
[]
["Sr. No.","Year","Title of Project","Funding Agency","Amount\n(Rs. In Lakhs) (amount actually received in corresponding year)"]
[]
["[1]","[2]","[3]","[4]","[5]"]
[null,"Financial year in format 2014-15, 2013-14, 2012-13",null,null,"numeric only upto 2 decimal"]
[{"$f":"+A12+1","v":1},"2014-2015","Detecting buried object using ground penetrating radar  (GPR) data ","DRDO, Pune ",7.5]
[{"$f":"+A13+1","v":2},"2014-2015","“Calibration and influence of uncertainty analysis of hydrological ","Seed Grant, TEQIP-II, Govt. College of Engineering Aurangabad",3]
[3,"2014-2015"," “Evaluation of shape characteristics of coarse aggregates","Seed Grant, TEQIP-II, Govt. College of Engineering Aurangabad",1.43]
[4,"2014-2015","Ductile behavior of RCC Columns using Ferromesh","Seed Grant, TEQIP-II, Govt. College of Engineering Aurangabad",1.8]
[5,"2014-2015","Fracture Mechanics of Fiber Reinforced Concrete” ","Seed Grant, TEQIP-II, Govt. College of Engineering Aurangabad",1.45]
[6,"2013-2014","Suitability and Modification of subgrade soil of flexible pavement ","NRRDA, New Delhi",2.86]
[7,"2013-2014","Use of waste plastic in bitumen and bitumen mixes ","NRRDA, New Delhi",1.7549999999999999]
[8,"2012-2013","Purification of Water by Herbal Extract (F.No. 41-192/2012","Major Research Project, UGC, New Delhi",4.95]

{"sheet":"Consultancy","index":6,"n_rows":90,"n_cols":5,"rows_kept":90,"cut":false,"hidden":false,"merged":[[1,2,1,18],[3,0,3,4],[9,0,10,0],[7,1,8,4],[9,1,10,1],[9,2,10,2],[9,3,10,3],[9,4,10,4]]}
[]
[]
[]
["Details of Consultancy  year-wise for the last 3 years (Financial Years: 2012-13, 2013-14, 2014-15)"]
[]
["Sr. No.","Year","Title of Project","Funding Agency","Amount"]
[]
[{"$f":"COUNT(A14:A9883)","v":77},"Consultancy (2.e)\n"]
[]
["Sr. \nNo.","Year","Title of Consultancy Project","Funding Agency","Amount\n(Rs. In Lakhs) (amount actually received in corresponding year)"]
[]
["[1]","[2]","[3]","[4]","[5]"]
[null,"Financial year in format 2014-15, 2013-14, 2012-13",null,null,"numeric only upto 2 decimal"]
[{"$f":"+A13+1","v":1},"2012-2013","Road work","City M.C. Parbhani","0.27/-"]
[{"$f":"+A14+1","v":2},"2012-2013","Road work","City M.C. Parbhani","0.25/-"]
[3,"2012-2013","Building work","Sarpanch Pathri","0.02/-"]
[4,"2012-2013","Road work","E. E. MIDC, A,bad","0.25/-"]
[5,"2012-2013","Design of Mixes","E. E. CIDCO, A,bad","0.54/-"]
[6,"2012-2013","Road work","City Engr. M.C. A,bad","0.28/-"]
[7,"2012-2013","Soil Investigations","Manisha Infrastructure, Aurangabad","6.02/-"]
[8,"2013-2014","School Building Construction","MPSP, Mumbai for Aurangabad District","38.00/-"]
[9,"2013-2014","Soil Investigations","Various  Department","0.64/-"]
[10,"2014-2015","School Building Construction","MPSP, Mumbai for Dhule District","12.35/-"]
[11,"2014-2015","Scrutiny of Proposal Nala Diversion ","imaGIS Engineering Solution Pvt. Ltd, Nagpur","0.03/-"]
[12,"2014-2015","Building works ","Hindustan Composite Ltd, Paithan","0.39/-"]
[13,"2014-2015","Scrutiny of Proposal of road ","Executive Engineer NH Nanded ","0.05/-"]
[14,"2014-2015","Scrutiny of Road Proposal","PCMC, Parbhani (Creation Engineers)","0.29/-"]
[15,"2014-2015","Road works","P.C.M.C. Parbhani","1.60/-"]
[16,"2014-2015","Road works","N. P. Khultabad","0.33/-"]
[17,"2014-2015","Soil Investigations","Various  Department","0.97/-"]
[18,"2014-2015","Completion Certificate for self development works at group housing scheme","The Medows HiLL View Homes Aurangabad","1.18/-"]
[19,"2014-2015","Completion Certificate for self development works at group housing scheme","The Nagpal Projects & Constructions Pvt. Ltd Aurangabad ","2.94/-"]
[20,"2014-2015","Completion Certificate for self development works at group housing scheme","The R. N. Developers Aurangabad","0.58/-"]
[21,"2014-2015","CCTV testing","Smart City, Aurangabad Muncipal carporation",0.29243999999999998]
[22,"2014-2015","CCTV Surveillance ","Govt. Dental College, Aurangabad",7.0000000000000007E-2]
[23,"2013-2014","EPBAX System","Land Survey, Aurangabad",7.0000000000000007E-2]
[24,"2014-2015","Paithan-Apegaon Vikas Pradhikaran","Government of Maharashtra",0.5]
[25,"2014-2015","Oil Testing of Transformer","Maharashtra State Road Transport Corporation",0.06]
[26,"2014-2015","Street Light Sodium Vapour Lamp Test","Aurangabad Munciple Corporation",0.18]
[27,"2014-2015","High Voltage Engineering Practicles","Godavari College of Engineering, Jalgon",0.32]
[28,"2014-2015","Testing of Epoxy Cast Insulation","Chaitanya Electromagnets, Aurangabad",0.03]
[29,"2014-2015","Street Light Testing","Nagpal Construction Pvt. Ltd. Aurangabad",0.5]
[30,"2013-2014","Testing of HV of Cables","Executive Engineering CIDCO, Aurangabad",0.02]
[31,"2013-2014","Testing of HV of Cables","Executive Engineering CIDCO, Aurangabad",0.04]
[32,"2014-2015","Paithan-Apegaon Vikas Pradhikaran","Government of Maharashtra",0.5]
[33,"2014-2015","Oil Testing of Transformer","Maharashtra State Road Transport Corporation",0.06]
[{"$f":"+A46+1","v":34},"2014-2015","Street Light Sodium Vapour Lamp Test","Aurangabad Munciple Corporation",0.18]
[35,"2012-2013","Construction of two ESR at Contonment Area","Contonment Board, Aurangabad",{"$f":"354496/100000","v":3.5449600000000001}]
[36,"2012-2013","Design Scrutiny of raft foundation of KT weir at Lasurgaon","Exe Engineer, Minor Irrigation Div., Aurangabad",{"$f":"16854/100000","v":0.16854}]
[37,"2012-2013","Design scrutiny of 5 lac litre ESR at Shendra 5-star MIDC, Aurangabad","Superintending Engineer, MIDC, Aurangabad",{"$f":"28090/100000","v":0.28089999999999998}]
[38,"2012-2013","Structural audit of district court building, Aurangabad","Superintending Engineer, PWD, Aurangabad",{"$f":"50000/100000","v":0.5}]
[39,"2012-2013","Proof checking of 56 quarters of CP, Aurangabad","Rashmin Constructions, Mumbai",{"$f":"56180/100000","v":0.56179999999999997}]
[{"$f":"+A52+1","v":40},"2012-2013","NDT of Chief fire-office building, Padampura, Aurangabad","The Dy. Engineer,\nRoads, Building, Garden & Drainage\nAMC\n",{"$f":"23596/100000","v":0.23596}]
[41,"2013-2014","NDT of prefabricated units","BG Shirke consultants",{"$f":"92811/100000","v":0.92810999999999999}]
[42,"2013-2014","Various structures of Paithan Pradhikaran, Paithan","Exe Engineer, MJP, Aurangabad",{"$f":"56180/100000","v":0.56179999999999997}]
[43,"2013-2014","Strength estimation of new building","SMS Hospitality, Aurangabad",{"$f":"25281/100000","v":0.25280999999999998}]
[44,"2013-2014","NDT testing","Golden dreams technopark, urangabad",{"$f":"16854/100000","v":0.16854}]
[45,"2013-2014","NIELT Girls hostel","Exe Engineer, Dr. BAMU, Aurangabad",{"$f":"26067/100000","v":0.26067000000000001}]
[46,"2013-2014","Various ESR owned by MIDC in Aurangabad","Exe Engineer, MIDC, Aurangabad",{"$f":"129214/100000","v":1.2921400000000001}]
[47,"2013-2014","School building at Ambejogai","Ch. Officer, Muncipal Council, Ambejogai",{"$f":"54528/100000","v":0.54527999999999999}]
[48,"2013-2014","Meeting hall & Chemistry Blg at BAMU Aurangabad","Exe Engineer, Dr. BAMU, Aurangabad",{"$f":"13067/100000","v":0.13067000000000001}]
[49,"2013-2014","ESR at Jalna","Dy. Engineer, MIDC, Jalna",{"$f":"77529/100000","v":0.77529000000000003}]
[50,"2013-2014","Testing of building at BAMU, Aurangabad","NG Karkhane, Aurangabad",{"$f":"77444/100000","v":0.77444000000000002}]
[51,"2013-2014","Water tank at Paithan","Muncipal Council, Paithan",{"$f":"16854/100000","v":0.16854}]
[52,"2013-2014","ADCC Bank, Kannad","Bank authorities",{"$f":"14537/100000","v":0.14537}]
[53,"2013-2014","Various load bearing structures in MIDC colony, Aurangabad","Exe Engineer, Aurangabad",{"$f":"168540/100000","v":1.6854}]
[54,"2013-2014","Yashawantrao Chavan Hostel","Exe Engineer, Dr. BAMU, Aurangabad",{"$f":"53815/100000","v":0.53815000000000002}]
[55,"2013-2014","School building at Phulambri","School authorities",{"$f":"10113/100000","v":0.10113}]
[56,"2013-2014","Dining hall/Lunch home","Exe Engineer, Dr. BAMU, Aurangabad",{"$f":"65234/100000","v":0.65234000000000003}]
[57,"2013-2014","IPCA Plant, Waluj","Landmark consultants",{"$f":"77916/100000","v":0.77915999999999996}]
[58,"2013-2014","Commercial building","SP Chavan, Shah Ganj, Aurangabad",{"$f":"30000/100000","v":0.3}]
[59,"2013-2014","Structural audit of various Load bearing buildings MIDC colony, Aurangabad","The Deputy Engineer& PA (I),\nMIDC Civil Division, \nAurangabad\n",{"$f":"168540/100000","v":1.6854}]
[60,"2013-2014","Providing supervision & third party inspection of 2-Nos. ESR","Chief Executive Officer\nCantonment Board\nAurangabad-431002\n",{"$f":"185394/100000","v":1.8539399999999999}]
[61,"2014-2015","NDT Assessment of open RCC gutter in Punandgaon ","Asst. Engineer Majalgaon sub. Divi. 4 Beed ",{"$f":"19382/100000","v":0.19381999999999999}]
[62,"2014-2015","NDT Test of RCC ESR at pokhari Ambad ","Sub.divisional officer Rural Division Aurangabad. ",{"$f":"10000/100000","v":0.1}]
[63,"2014-2015","Scrutiny of design & drawing of RCC ESRs ","EX. Engineer MJP Aurangabad",{"$f":"31464/100000","v":0.31463999999999998}]
[64,"2014-2015","Proof checking of RCC design of office bldg at Waluj ","GN Chitari En. Con. Solapur ",{"$f":"86400/100000","v":0.86399999999999999}]
[65,"2014-2015","Design scrutiny of RCC ESR ","Chef Officer  Municipal Council Gangapur  ",{"$f":"19382/100000","v":0.19381999999999999}]
[66,"2014-2015","Design scrutiny of RCC ESR ","Chef Officer  Municipal Council Gangapur",{"$f":"14214/100000","v":0.14213999999999999}]
[67,"2014-2015","Design scrutiny of RCC ESR ","Chief Officer  Municipal Council Gangapur  ",{"$f":"20674/100000","v":0.20674000000000001}]
[68,"2014-2015","Design scrutiny of RCC ESR ","N G Karkhane Consuting Engineer & Structural Desginer Aurangabad.  ",{"$f":"20000/100000","v":0.2}]
[69,"2014-2015","Design scrutiny of RCC ESR ","Chief Officer  Municipal Council Kinwat Nanded ",{"$f":"18090/100000","v":0.18090000000000001}]
[70,"2014-2015","Design scrutiny of RCC ESR ","EX. Engineer MIDC Civil Div. Aurangabad",{"$f":"15506/100000","v":0.15506}]
[71,"2014-2015","RCC class –III quarters of firemen Waluj ","EX. Engineer MIDC Civil Div. Aurangabad",{"$f":"55614/100000","v":0.55613999999999997}]
[72,"2014-2015","Design scrutiny of RCC ESR","EX. Engineer MIDC Civil Div. Aurangabad",{"$f":"10337/100000","v":0.10337}]
[73,"2014-2015","Design scrutiny of RCC ESR","EX. Engineer MIDC Dhule",{"$f":"10337/100000","v":0.10337}]
[74,"2014-2015","Design scrutiny of RCC pure  water sump WTP Nanded ","EX. Engineer MIDC Division  Nanded ",{"$f":"19382/100000","v":0.19381999999999999}]
[75,"2014-2015","Structural Audit of flatted bldgs owned by MIDC ","Dy. Engineer  PA(I) MIDC circle office Aurangabad",{"$f":"100000/100000","v":1}]
[76,"2014-2015","Proof checking of major bridge across bindusara river ","Chief Engineer MSRDC Ltd aurangabad",{"$f":"478654/100000","v":4.7865399999999996}]
[77,"2014-2015","Scrutiny of design & drg. Of Girls hostel of Osmanabad ","Ex. Engineer DR.BAMU Aurangabad",{"$f":"43974/100000","v":0.43974000000000002}]

{"sheet":"Education Program","index":7,"n_rows":17,"n_cols":5,"rows_kept":17,"cut":false,"hidden":false,"merged":[[1,2,1,18],[3,0,3,4],[9,1,10,1],[7,2,8,4],[9,2,10,2],[9,3,10,3],[9,4,10,4],[9,0,10,0]]}
[]
[]
[]
["Details of Continuing Education Program for the last 3 years (Academic Years: 2012-13, 2013-14, 2014-15)"]
[]
["Sr. No.","Year","Name of Prog","No of Participants to whom certificate issued","No of Days"]
[]
[{"$f":"COUNT(A14:A961)","v":4},null,"Continuing Education Programs Imparted (not less than 6 days duration) held in last 3 years (4.a)\n"]
[]
["Sr. \nNo.","Year","Name of program","No of Participants to whom certificate issued","No of Days"]
[]
["[1]","[2]","[3]","[4]","[5]"]
[null,"Academic year in format 2014-15, 2013-14, 2012-13",null,null,"numeric only"]
[{"$f":"+A13+1","v":1},"2013-2014","Certificate Course in Signal and Image Processing",27,7]
[2,"2012-2013","Engineering Optimization Techniques and Its Application in Research EATOR -2012",50,12]
[3,"2012-2013","Certificate Course in Signal and Image Processing",31,7]
[4,"2012-2013","Certificate Course in Signal and Image Processing",8,7]

{"sheet":"Students","index":8,"n_rows":40,"n_cols":35,"rows_kept":40,"cut":false,"hidden":false,"merged":[[39,2,39,8],[40,2,40,8],[7,32,7,33],[8,12,9,12],[8,29,9,29],[8,32,9,32],[7,21,7,25],[8,28,9,28],[8,21,9,21],[8,23,9,23],[7,26,7,29],[7,30,7,31],[8,22,9,22],[38,2,38,8],[8,16,9,16],[8,3,8,5],[1,1,1,33],[8,24,9,24],[8,30,8,31],[8,33,9,33],[7,18,7,20],[8,20,9,20],[8,19,9,19],[8,18,9,18],[8,25,9,25],[8,26,9,26],[8,27,9,27],[5,0,6,18],[7,12,7,17],[7,0,9,0],[7,1,9,1],[7,2,9,2],[8,6,8,8],[7,3,7,8],[7,9,7,11],[8,10,9,10],[8,9,9,9],[8,11,9,11],[2,1,2,33],[34,2,34,8],[35,2,35,8],[36,2,36,8],[37,2,37,8],[31,2,31,8],[32,2,32,8],[33,2,33,8],[12,32,23,32],[12,33,23,33],[8,17,9,17],[12,21,15,21],[12,29,15,29],[12,30,15,30],[20,21,23,21],[20,22,23,22],[20,23,23,23],[20,24,23,24],[20,25,23,25],[16,21,19,21],[16,22,19,22],[16,23,19,23],[16,24,19,24],[16,25,19,25],[12,22,15,22],[12,23,15,23],[12,24,15,24],[12,25,15,25],[12,31,15,31],[12,26,15,26],[12,27,15,27],[12,28,15,28],[16,26,19,26],[20,26,23,26],[16,30,19,30],[16,31,19,31],[20,30,23,30],[20,31,23,31],[16,27,19,27],[16,28,19,28],[16,29,19,29],[20,27,23,27],[20,28,23,28],[20,29,23,29]]}
[]
[]
[]
[]
["Year","Leave of Programme","Approved Intake ","Actual intake (1.a & 4.b) - No. of Students admitted in 1st year - Within State","Actual intake (1.a & 4.b) - No. of Students admitted in 1st year - Outside State","Actual intake (1.a & 4.b) - No. of Students admitted in 1st year - Outside Country","Actual intake (1.a & 4.b) - Lateral Entry in 2nd Year for UG Program only - Within State","Actual intake (1.a & 4.b) - Lateral Entry in 2nd Year for UG Program only - Outside State","Actual intake (1.a & 4.b) - Lateral Entry in 2nd Year for UG Program only - Outside Country","Total No. of Students in all 4 years for UG programs and 2 years in PG programs  and all Ph.D. Students (4.c) - Male","Total No. of Students in all 4 years for UG programs and 2 years in PG programs  and all Ph.D. Students (4.c) - Female","Total No. of Students in all 4 years for UG programs and 2 years in PG programs  and all Ph.D. Students (4.c) - Total","No. of Students in Special Categories (4.b) - Economically Backward",null,null,null,"No. of Students in Special Categories (4.b) - Socially isadvantaged (SC, ST & OBC)","No. of Students in Special Categories (4.b) - Physically Challenged","Performance in University Examination (3.a)\n(No. of Students graduating in time) - No. of Studetns Admitted in 1 year; as per batch","Performance in University Examination (3.a)\n(No. of Students graduating in time) - Lateral Entry as per batch","Performance in University Examination (3.a)\n(No. of Students graduating in time) - No. of Students Graduating in Minimum Time","Performance in Public Examinations (3.a) - UPSC Examinations","Performance in Public Examinations (3.a) - State Govt. Examination","Performance in Public Examinations (3.a) - GATE","Performance in Public Examinations (3.a) - CAT","Performance in Public Examinations (3.a) - Other (Please Specify)","Placement in Company/ Government Organisations through Campus Placement in Previous Year            (3.b and 3.c) - No. of students","Placement in Company/ Government Organisations through Campus Placement in Previous Year            (3.b and 3.c) - Minimum Salary","Placement in Company/ Government Organisations through Campus Placement in Previous Year            (3.b and 3.c) - Maximum Salary","Placement in Company/ Government Organisations through Campus Placement in Previous Year            (3.b and 3.c) - Average Salary","Students Opting for Higher Studies  (3.b) - No. of Admissions - With Examination","Students Opting for Higher Studies  (3.b) - No. of Admissions - Without Examination","Entrepreneurship in Engg. & Tech. (include only students started entrepreneurship in the field of study) (3.b) - No. of Student started entrepreneurship in last 10 year","Entrepreneurship in Engg. & Tech. (include only students started entrepreneurship in the field of study) (3.b) - No. of Student  passed out in last 10 years","dgfs"]
["Students Details Year-wise for the Last 3 Academic Years"]
[]
["Year","Level of Programme","Approved Intake ","Actual Intake (1.a & 4.b)",null,null,null,null,null,"Total No. of Students in all 4 years for UG programs and 2 years in PG programs  and all Ph.D. Students (4.c)",null,null,"No. of Students in Special Categories (4.b)",null,null,null,null,null,"Performance in University Examination (3.a)\n(No. of Students graduating in minimum time)",null,null,"Performance in Public Examinations (3.a)",null,null,null,null,"Placement in Company/ Government Organisations through Campus Placement in Previous Year            (3.b and 3.c)",null,null,null,"Students Opting for Higher Studies  (3.b)",null,"Entrepreneurship in Engg. & Tech. (include only students started entrepreneurship in the field of study) (3.b)"]
[null,null,null,"No. of Students admitted in 1st year",null,null,"Lateral Entry in 2nd year for UG program only",null,null,"Male ","Female","Total","Economically Backward ","Socially Disadvantaged ","Socially Disadvantaged ","Socially Disadvantaged ","Socially Disadvantaged (SC, ST & OBC)\nTotal","Physically Challenged","No. of Students Admitted in 1 year; as per batch","Lateral Entry\nas per batch","No. of Students Graduating in Minimum Time ","UPSC Examinations","State Govt. Examination","GATE","CAT","Others\n(Please Specify)","No. of the Students","Minimum Salary","Maximum Salary","Average Salary","No. of Admissions",null,"No. of Student started entrepreneurship in last 10 years","Number of Students passed out in last 10 years"]
[null,null,null,"Within State","Outside State","Outside Country","Within State","Outside State","Outside Country",null,null,null,null,"SC","ST","OBC",null,null,null,null,null,null,null,null,null,null,null,null,null,null,"with Examination","without Examination"]
["[1]","[2]","[3]","[4]","[5]","[6]","[7]","[8]","[9]","[10]","[11]","[12]","[13]","[14]","[15]","[16]","[17]","[18]","[19]","[20]","[21]","[22]","[23]","[24]","[25]","[26]","[27]","[28]","[29]","[30]","[31]","[32]","[33]","[34]"]
[null,null,"numeric only","numeric only","numeric only","numeric only","numeric only","numeric only","numeric only","numeric only","numeric only","numeric only (computed automatically)","numeric only","numeric only","numeric only","numeric only","numeric only","numeric only","numeric only","numeric only","numeric only","numeric only","numeric only","numeric only","numeric only","numeric only","numeric only","numeric only","numeric only","numeric only","numeric only","numeric only","numeric only","numeric only"]
["2014-15","UG",454,378,3,0,73,0,0,1027,648,{"$f":"+J13+K13","v":1675},290,211,99,398,{"$f":"(SUM(N13:P13))","v":708},11,381,73,412,0,4,66,2,3,247,300000,650000,400000,14,0,14,4250]
["2014-15","PG",186,186,0,0,0,0,0,220,71,{"$f":"+J14+K14","v":291},0,37,5,64,{"$f":"(SUM(N14:P14))","v":106},0,126,0,119]
["2014-15","PG-Int",0,0,0,0,0,0,0,0,0,0,0,0,0,0,0,0,0,0,0]
["2014-15","Ph.D.",10,10,0,0,0,0,0,6,4,10,0,2,0,2,4,0,10,0,7]
["2013-14","UG",451,378,0,0,73,0,0,1075,661,1736,325,189,75,309,573,10,378,73,403,0,9,55,5,3,201,300000,1050000,400000,25,0]
["2013-14","PG",198,186,0,0,12,0,0,246,80,326,0,51,4,54,109,0,126,0,90]
["2013-14","PG-Int",0,0,0,0,0,0,0,0,0,0,0,0,0,0,0,0,0,0,0]
["2013-14","Ph.D.",15,15,0,0,0,0,0,8,7,15,0,2,0,5,7,0,15,0,12]
["2012-13","UG",452,378,0,0,74,0,0,1087,660,1747,326,190,50,489,729,11,378,74,408,3,23,56,1,4,232,300000,1250000,350000,36,1]
["2012-13","PG",186,186,0,0,0,0,0,186,107,293,0,22,0,24,46,0,126,0,86]
["2012-13","PG-Int",0,0,0,0,0,0,0,0,0,0,0,0,0,0,0,0,0,0,0]
["2012-13","Ph.D.",2,2,0,0,0,0,0,2,0,2,0,0,0,0,0,0,2,0,2]
[]
[]
[]
[]
[]
[]
[null,"*Notes on \"Students\""]
[null,"Col: 03-09","Include the total no. of student admitted in a given academic year as numeric value for 1st year (Col. 4-6) and 2nd year - Lateral entry (Col. 7-9) "]
[null,"Col: 10-12","Include the actual student strength in a given academic year in different level of Program, e.g, students from all 4 year in case of UG, all 2 years in case of PG and all PhD students."]
[null,"Col: 13-16","Students whose annual family income is less than Rs. 3 lakhs. Do not include the students who are counted under SC, ST, OBC given in column 14,15,16. "]
[null,"Col: 18","No. of physically-challenged students"]
[null,"Col: 19-21","No. of students admitted in respective years (first batch and lateral entry) and graduated in minimum time."]
[null,"Col: 22-26","No. of students successful in different public examinations "]
[null,"Col: 27-30","No. of students placed and their salary per year (package)"]
[null,"Col: 31-32","Mention the no. of students opted for higher studies through any competitive / entrance examination in col no. 31. Mention the no. of students opted for higher studies through merit basis or similar criterias without any written examination in col. 32."]
[null,"Col: 33-34","No. of students who became successful entrepreneurs in the same field i.e. Engg. and technology"]

{"sheet":"Public Exam","index":9,"n_rows":28,"n_cols":5,"rows_kept":28,"cut":false,"hidden":false,"merged":[[1,2,1,18],[3,0,3,4],[9,2,9,4],[10,0,12,0],[10,1,12,1],[10,2,10,4],[11,2,12,2],[11,3,12,3],[11,4,12,4]]}
[]
[]
[]
["Details of Performance in Public Examinations for the Past 3 Academic Years (3.a)(Academic Years: 2012-13, 2013-14, 2014-15)"]
[]
[]
[]
["Sr. No.","Year","Examination Body","Name of the Examination","No. of Successful Students"]
[]
[{"$f":"COUNT(A16:A898)","v":13},null,"Performance in Public Examinations for the Past 3 Academic Years (3.a)"]
["Sr. No.","Year"]
[null,null,"Examination Body","Name of the Examination","No. of Successful Students"]
[]
["[1]","[2]","[3]","[4]","[5]"]
[null,null,null,null,"numeric only"]
[{"$f":"+A15+1","v":1},"2014-15","GATE","IITs- Graduate Aptitude Test- FEB-15",66]
[{"$f":"+A16+1","v":2},"2013-14","GATE","IITs- Graduate Aptitude Test- FEB-14",55]
[3,"2012-13","GATE","IITs- Graduate Aptitude Test- FEB-13",56]
[4,"2014-15","State Public Service Commission ","MPSC-Maharashtra Public Service Commission-JUL-2014",4]
[5,"2013-14","State Public Service Commission ","MPSC-Maharashtra Public Service Commission-JUL-2013",9]
[6,"2012-13","State Public Service Commission ","MPSC-Maharashtra Public Service Commission-JUL-2012",23]
[7,"2012-13","UPSC","UPSC- Union Public Service Commision- DEC-12",3]
[8,"2014-15","CAT","IIMs- Common Admission Test- NOV- 14",2]
[9,"2013-14","CAT","IIMs- Common Admission Test- NOV- 13",5]
[10,"2012-13","CAT","IIMs- Common Admission Test- NOV- 12",1]
[11,"2014-15","Others","GRE & Others- Graduate Record Examination, Others-DEC-15",3]
[12,"2013-14","Others","GRE & Others- Graduate Record Examination, Others-DEC-15",3]
[13,"2012-13","Others","GRE & Others- Graduate Record Examination, Others-DEC-15",4]

{"sheet":"Student Event","index":10,"n_rows":35,"n_cols":5,"rows_kept":35,"cut":false,"hidden":false,"merged":[[1,2,1,18],[3,0,3,4],[10,1,12,1],[10,0,12,0],[10,2,10,4],[11,2,12,2],[11,3,12,3],[11,4,12,4],[9,2,9,4]]}
[]
[]
[]
["Details Top Positions in Sports/Extra Curricular Events for past 3 years (Academic Years: 2012-13, 2013-14, 2014-15)"]
[]
[]
[]
["Sr. No.","Year","Name of Event","Position","Type of Event"]
[]
[{"$f":"COUNT(A16:A949)","v":20},null,"Top Position in Inter-college Sports/ Extra Curricular Events for the Past 3 Academic Years (1.d)"]
["Sr. No.","Year"]
[null,null,"Name of the Event","Position","Type of Event"]
[]
["[1]","[2]","[3]","[4]","[5]"]
[null,null,null,"numeric only","International/ National/ State level"]
[{"$f":"+A15+1","v":1},"2012-2013","VOLLEYBALL  INTERCOLLIGIATE AND INTERUNIVERSITY",1,"State Level"]
[2,"2013-2014","VOLLEYBALL INTERCOLLIGIATE AND INTERUNIVERSITY",1,"State Level"]
[3,"2014-2015","VOLLEYBALL INTERCOLLIGIATE AND INTERUNIVERSITY",1,"State Level"]
[4,"2013 - 14","Ashwamedh Chess\n Tournament, Beed\n","First","State"]
[5,"2012 -13","Ignited Innovators of India, COEP","First","National"]
[6,"2014 - 15","Dr B.A.M.University Aurangabad (MH)  Inter College Swimming (Girls)",1,"State Level"]
[7,"2012-2013","Basketball",1,"State Level"]
[{"$f":"+A22+1","v":8},"2013-2014","Poster Presentation",1,"State Level"]
[9,"2013-2014","Greeting Competition",1,"State Level"]
[10,"2013-2014","Tronicarambh 2013 Poster Presentation",1,"State Level"]
[11,"2013-2014","Rotoract Club of Achievers,Essay writing",1,"State Level"]
[12,"2013-2014","Rangoli Intercollegiate competetion",1,"State Level"]
[13,"2013-2014","International Dance Festival, Turkey",1,"International"]
[14,"2012-2013","Robo-race, Hi-Tech Institute Aurangabad",1,"State Level"]
[15,"2012-2013","Rob Tryst championship, JNEC Aurangabad",1,"National"]
[16,"2012-2013","Group Discussion Rotary Club Aurangabad East",1,"International"]
[17,"2012-2013","Lead India, Youth Leadership Development Program, Rotary Club of Aurangabad East",1,"National"]
[18,"2013-2014","Craze Purchaze, Vishwapreneur, 2013",1,"National"]
[19,"2013-2014","Lead India, Youth Leadership Development Program, Rotary Club of Aurangabad East",1,"National"]
[20,"2013-2014","Paper Presentation, AWUT 2014, MGM's Jawaharlal Nehru Engineering College, Aurangabad",1,"State Level"]

{"sheet":"Facilities","index":11,"n_rows":20,"n_cols":12,"rows_kept":20,"cut":false,"hidden":false,"merged":[[0,1,0,33],[6,0,6,9],[7,9,9,9],[8,2,9,2],[8,7,9,7],[8,1,9,1],[7,0,9,0],[7,1,7,2],[8,8,9,8],[8,5,8,6],[7,5,7,7],[8,4,9,4],[7,10,8,11],[7,3,7,4],[8,3,9,3],[17,2,17,8],[1,1,1,9],[18,2,18,8],[19,2,19,8]]}
[]
[]
[]
[]
[{"$f":"COUNT(A13:A20)","v":0}]
["Year","Library (1.c) - On Physical Resource : Books & Journals","Library (1.c) - On e-Resources: e-Jouranals, e-books, etc.","Laboratories (1.c) - On Creation/ Up-gradation & Equipment","Laboratories (1.c) - On Maintenance & Safety","Sports Facilities (1.d) - Total Area (In Sq. Mtrs.) - Outdoor","Sports Facilities (1.d) - Total Area (In Sq. Mtrs.) - Indoor","Sports Facilities (1.d) - Annual Expenditure amount (Rest. In Lakhs)","Extra Curricular Facilities (1.d) - Expenditure Amount (Rest. In Lakhs)","Number of Women Members of Eminence as Institute Head or \nin the Governing Board of the Institute being Ranked (4.c)","Zero Deficiency Report (1.c)\n(To be filled by Institutions ranked under Category B) -  For Library","Zero Deficiency Report (1.c)\n(To be filled by Institutions ranked under Category B) -  For Laboratory"]
["Annual Expenditures on Library, Laboratories and Sports Facilities Yearwise for Last 3 Financial Years \nAmount (Rs. in Lakhs)"]
["Year","Library (1.c)",null,"Laboratories (1.c)",null,"Sports Facilities (1.d)",null,null,"Extra Curricular Facilities (1.d)","Number of Women Members of Eminence as Institute Head or \nin the Governing Board of the Institute (4.c)","Zero Deficiency Report (1.c)\n(To be filled by Institutions ranked under Category B)"]
[null,"On Physical Resources: Books &  Journals","On e-Resources: e-Journals, e-books, etc.","On Creation/ Up-gradation & Equipment ","On Maintenance & Safety","Total Area\n(in Sq. Mtrs.)",null,"Annual Expenditures \nAmount (Rs. In Lakhs) ","Expenditures \nAmount (Rs. In Lakhs) "]
[null,null,null,null,null,"Outdoor","Indoor",null,null,null,"For Library","For Laboratory"]
["[1]","[2]","[3]","[4]","[5]","[6]","[7]","[8]","[9]","[10]","[11]","[12]"]
["Financial year in format 2014-15, 2013-14, 2012-13","numeric only upto 2 decimal","numeric only upto 2 decimal","numeric only upto 2 decimal","numeric only upto 2 decimal","numeric only upto 2 decimal","numeric only upto 2 decimal","numeric only upto 2 decimal","numeric only upto 2 decimal","numeric only ","Yes/No","Yes/No"]
["2014-15",6.4,13.5,58.45,44.63,10179,1298.46,3.3273600000000001,4.2149999999999999,0,"Yes","No"]
["2013-14",21.52,13.5,366.25,31.83,10179,0,4.0958699999999997,3.14,0,"Yes","No"]
["2012-13",25.42,13.5,107,33.4,10179,0,1.9446099999999999,0,0,"Yes","No"]
[]
[null,"Notes on \"Facilities\""]
[null,"Col: 02-09","Annual expenditures (Rs. in Lakhs upto 2 decimal points) including Library, Laboratories, Sports Facilities, Extra curricular."]
[null,"Col: 10","No of women members of eminence as institute head or in GB of the institute."]
[null,"Col: 11-12","These two columns need to be filled by Institutions ranked under Category B only. Please mention yes if your institute is having the zero deficiency report issued by AICTE."]

{"sheet":"PH_Facilities","index":12,"n_rows":32,"n_cols":3,"rows_kept":32,"cut":false,"hidden":false,"merged":[[18,2,20,2],[21,2,24,2],[25,2,27,2],[28,2,30,2],[1,1,1,2],[7,0,7,2],[2,1,2,2],[9,2,12,2],[13,2,17,2]]}
[]
[]
[]
[]
[]
[]
[]
["Details of Facilities for Physically Challenged Students (4.e)"]
["Sl. No","Question","Ans (Enter only numeric value i.e. 1 or 2 or 3 or 4)"]
[1,"Do your buildings have ramp? ",1]
[null,"1. No ramp"]
[null,"2. Less than or equal to 50%"]
[null,"3. More than 50%"]
[2,"Do your buildings have lifts?",4]
[null,"1. No lift"]
[null,"2. Less than or equal to 50% "]
[null,"3. More than 50%"]
[null,"4. Building does not have more than three floors"]
[3,"Do you have provision for walking aids including wheel chairs and transportation from one building to another for handicapped students?",2]
[null,"1. Yes"]
[null,"2. No"]
[4,"Do your buildings have specially designed toilets for handicapped students?       ",1]
[null,"1. No such facility"]
[null,"2. In Less than or equal to 50% Buildings "]
[null,"3. In more  than 50% buildings"]
[5,"Do you have Braille Lab / special Lab for Blinds/handicapped students?",2]
[null,"1. Yes"]
[null,"2. No"]
[6,"Do you have special facilities for blinds students (such as text to audio convertor, screen magnification software, special provision for examiniation?                                            ",2]
[null,"1. Yes"]
[null,"2. No"]
[null," "]

{"sheet":"Sheet1","index":13,"n_rows":12,"n_cols":3,"rows_kept":12,"cut":false,"hidden":true,"merged":[]}
["<?xml version=\"1.0\" encoding=\"UTF-8\"?>"]
["djflj","alsdj","lkajsld"]
[]
[]
[]
[]
[]
[]
[]
[]
[]
[null,"gt1g2"]